bitfinex-derivatives/quotes_SOLF0:USTF0_20240905
["timestamp","ask_amount","ask_price","bid_price","bid_amount"]
[1725543501189,3.79117286,133.91,133.89,34.46678965]
[1725543501393,3.7343,133.9,133.89,0.05678965]
[1725543501900,7.461,134.04,133.89,34.46678965]
[1725543502196,5.67539697,134.01,133.93,34.41]
[1725543502498,3.733,133.95,133.93,34.41]
[1725543502793,3.733,133.95,133.93,38.16672043]
[1725543503094,0.05697102,133.95,133.93,38.21455348]
[1725543503391,5.39710836,134.01,133.93,38.21455348]
[1725543503586,1.6206,134.01,133.93,38.21455348]
[1725543503991,3.7324,133.97,133.93,41.94785348]
[1725543504289,226.74775985,134.07,133.95,34.41]
[1725543504494,1.5899,134.06,133.99,34.41]
[1725543504900,3.7304,134.04,134.0,3.7313]
[1725543505091,1.5743,134.09,134.01,34.41]
[1725543505396,0.27440925,134.08,134.04,0.05429106]
[1725543506697,1.5743,134.09,134.04,0.05429106]
[1725543507393,3.7301,134.05,134.04,0.05429106]
[1725543507697,3.1482,134.13,134.04,0.05429106]
[1725543507903,3.1482,134.13,134.07,0.04811526]
[1725543508092,3.7293,134.08,134.07,0.04811526]
[1725543509190,3.7291,134.09,134.07,0.04811526]
[1725543509791,257.41,134.23,134.08,34.41]
[1725543509995,34.41,134.27,134.07,0.04811526]
[1725543509996,1.9378,134.17,134.14,0.05163451]
[1725543510202,3.7273,134.15,134.14,0.05163451]
[1725543510503,1.9378,134.17,134.06,28.66]
[1725543510896,1.9378,134.17,134.06,32.31345089]
[1725543511199,1.0,134.21,134.15,28.66]
[1725543511396,11.1717,134.28,134.15,28.66]
[1725543511397,3.9566,134.26,134.16,3.73666196]
[1725543511598,0.05063171,134.22,134.2,0.05361499]
[1725543511806,3.7256,134.21,134.2,0.04720171]
[1725543512407,0.05163451,134.22,134.2,0.04720171]
[1725543513509,7.4401,134.42,134.21,28.66]
[1725543513696,1.9195,134.33,134.21,28.66]
[1725543513900,34.33,134.31,134.2,3.65336567]
[1725543514109,34.33,134.31,134.17,34.33]
[1725543514110,0.27401255,134.3,134.17,34.33]
[1725543514400,34.33,134.29,134.17,37.99566656]
[1725543514600,2.30631255,134.28,134.22,0.04863178]
[1725543514804,0.27401255,134.27,134.22,0.04863178]
[1725543515005,34.33,134.26,134.13,34.33]
[1725543515306,34.33,134.24,134.13,37.9774016]
[1725543515803,1.9633,134.23,134.13,37.9774016]
[1725543516002,0.04776764,134.19,134.17,0.0518418]
[1725543516210,3.7265,134.18,134.17,0.0518418]
[1725543516601,0.04776764,134.19,134.17,0.0518418]
[1725543516998,620.9227,134.47,134.18,34.33]
[1725543517199,620.9227,134.47,134.2,34.33]
[1725543517200,3.7249,134.24,134.2,34.33]
[1725543517404,36.2912,134.32,134.2,34.33]
[1725543517600,38.00627902,134.29,134.18,36.3819]
[1725543517909,38.00627902,134.29,134.17,3.75568754]
[1725543518110,38.00627902,134.29,134.13,34.33]
[1725543518111,34.33,134.29,134.22,0.04718617]
[1725543518308,3.7245,134.25,134.24,0.04930943]
[1725543518813,3.70435012,134.27,134.15,34.33]
[1725543519011,34.33,134.29,134.15,38.109257]
[1725543519213,34.33,134.29,134.16,3.727]
[1725543519413,5.79404146,134.28,134.16,3.727]
[1725543519608,34.33,134.27,134.15,38.109257]
[1725543519812,0.05017357,134.22,134.2,0.05084805]
[1725543520007,0.04897359,134.22,134.2,0.05084805]
[1725543521409,3.77457359,134.22,134.2,0.05084805]
[1725543521612,0.04897359,134.22,134.2,0.05084805]
[1725543522009,3.7256,134.21,134.2,0.05084805]
[1725543523113,3.77437359,134.22,134.2,0.05084805]
[1725543523409,0.04897359,134.22,134.2,0.05084805]
[1725543523613,3.77457359,134.22,134.2,0.05084805]
[1725543524814,3.7256,134.21,134.2,0.05084805]
[1725543525014,0.04897359,134.22,134.2,0.05084805]
[1725543525912,3.72102496,134.27,134.2,0.05084805]
[1725543526210,1.9373,134.29,134.2,34.38084805]
[1725543526513,1.9373,134.29,134.2,34.33]
[1725543526706,3.7249,134.24,134.2,34.33]
[1725543526907,1.9373,134.29,134.21,0.05738389]
[1725543527216,223.0,134.34,134.27,34.33]
[1725543527513,6.0158,134.39,134.29,0.04964777]
[1725543527717,0.27384599,134.38,134.33,0.04967937]
[1725543527909,9.74427894,134.39,134.33,0.04967937]
[1725543528307,7.4371,134.47,134.33,0.04967937]
[1725543528512,38.65998234,134.46,134.39,0.05526233]
[1725543528715,3.7198,134.42,134.41,0.05675562]
[1725543528912,3.72663668,134.42,134.4,0.049293]
[1725543529112,34.33,134.43,134.4,0.05527831]
[1725543529317,3.7201,134.41,134.4,0.05527831]
[1725543529821,34.33,134.44,134.32,34.33]
[1725543530118,8.79922077,134.46,134.28,1.9562]
[1725543530119,34.33,134.41,134.28,1.9562]
[1725543530420,3.29210351,134.4,134.21,0.2849]
[1725543530625,34.33,134.37,134.24,34.33]
[1725543530816,0.05079014,134.32,134.29,0.05027898]
[1725543531011,38.19046438,134.32,134.2,3.64397147]
[1725543531211,1.9803,134.31,134.19,34.33]
[1725543531411,1.9803,134.31,134.14,4.1223]
[1725543531412,34.33,134.3,134.18,3.70913549]
[1725543531719,34.33,134.3,134.17,34.33]
[1725543531914,2.9803,134.31,134.22,34.33]
[1725543532116,0.05281323,134.28,134.25,0.05712964]
[1725543534117,0.05281323,134.28,134.27,34.33]
[1725543534715,2.0479,134.36,134.27,34.33]
[1725543535815,3.77127911,134.33,134.3,0.04797893]
[1725543536015,0.04897911,134.33,134.3,0.04797893]
[1725543536420,34.33,134.31,134.2,977.23365]
[1725543536622,1.965,134.3,134.21,3.77951582]
[1725543536920,3.7248,134.25,134.21,3.77951582]
[1725543537417,0.0492964,134.24,134.22,3.71614849]
[1725543537617,0.05470446,134.24,134.22,3.70795482]
[1725543539922,1.965,134.3,134.22,3.70795482]
[1725543540220,37.98285746,134.37,134.25,34.33]
[1725543540525,3.9725,134.36,134.25,34.33]
[1725543540724,3.7237,134.28,134.25,34.33]
[1725543540920,3.7237,134.28,134.25,0.05402256]
[1725543540921,0.04721851,134.28,134.25,0.05402256]
[1725543541218,3.7243,134.26,134.25,0.05402256]
[1725543541819,0.04721851,134.28,134.25,0.05402256]
[1725543542319,0.04721851,134.28,134.26,34.33]
[1725543544529,0.2737359,134.43,134.37,0.05022346]
[1725543545223,3.7209,134.38,134.37,0.05022346]
[1725543545821,6.0083,134.45,134.37,0.05022346]
[1725543546822,6.0083,134.45,134.38,34.33]
[1725543547023,4.0878,134.45,134.4,0.04822776]
[1725543547232,0.02,134.48,134.41,0.05370431]
[1725543547433,2.0674,134.47,134.41,0.05370431]
[1725543547735,0.02,134.48,134.42,34.33]
[1725543548031,0.02,134.48,134.42,38.03089088]
[1725543548032,3.7192,134.45,134.42,38.03089088]
[1725543548230,0.02,134.48,134.42,38.03089088]
[1725543549124,102.12261727,134.61,134.46,34.33]
[1725543549325,2.026,134.57,134.52,0.05181513]
[1725543549532,4.1087663,134.6,134.53,0.04775054]
[1725543549533,36.2561,134.6,134.53,0.04775054]
[1725543549725,2.29942332,134.59,134.53,0.04775054]
[1725543550026,3.7165,134.54,134.53,0.04775054]
[1725543551522,36.356,134.59,134.46,34.33]
[1725543551727,0.27342343,134.58,134.46,34.33]
[1725543552325,3.94486958,134.58,134.46,34.33]
[1725543552623,3.7179,134.49,134.46,34.33]
[1725543552936,0.04634982,134.49,134.46,0.04954057]
[1725543553128,3.7184,134.47,134.46,0.04954057]
[1725543553831,0.04634982,134.49,134.46,34.37954057]
[1725543554223,0.04634982,134.49,134.46,0.04954057]
[1725543554224,3.7184,134.47,134.46,0.04954057]
[1725543554926,0.04634982,134.49,134.46,0.04954057]
[1725543555329,3.7184,134.47,134.46,0.04954057]
[1725543555725,36.3141,134.52,134.4,3.62725944]
[1725543555929,3.7194,134.44,134.39,34.33]
[1725543556233,1.9841,134.52,134.43,34.33]
[1725543556452,1.8722,134.53,134.4,34.33]
[1725543556453,3.7182,134.48,134.46,34.33]
[1725543556686,1.9841,134.58,134.47,3.66482642]
[1725543556826,0.27345031,134.57,134.51,0.05015756]
[1725543557049,0.04960079,134.54,134.51,0.05015756]
[1725543557534,3.7171,134.52,134.51,0.05015756]
[1725543558529,0.04960079,134.54,134.51,0.05015756]
[1725543559326,0.04960079,134.54,134.53,34.33]
[1725543559544,0.04960079,134.54,134.51,0.05015756]
[1725543559737,0.04960079,134.54,134.51,34.38015756]
[1725543559939,0.04960079,134.54,134.51,0.05015756]
[1725543560335,0.04960079,134.54,134.42,34.33]
[1725543560634,34.33,134.54,134.42,34.33]
[1725543560929,34.33,134.54,134.41,4.4395]
[1725543560930,34.33,134.51,134.41,1.9836]
[1725543561130,3.8744,134.55,134.49,34.33]
[1725543561523,0.05050009,134.53,134.51,0.04692608]
[1725543561731,0.05320594,134.53,134.51,0.05254337]
[1725543561934,34.33,134.57,134.44,34.33]
[1725543562645,34.33,134.57,134.44,38.0493]
[1725543562835,0.05718568,134.52,134.44,34.33]
[1725543563056,0.05718568,134.52,134.47,0.05499344]
[1725543563439,3.7182,134.48,134.47,0.05499344]
[1725543563738,3.8551,134.51,134.4,34.33]
[1725543563935,4.8551,134.51,134.42,34.33]
[1725543564232,223.0,134.58,134.46,34.33]
[1725543564506,38.04727142,134.59,134.41,1.965]
[1725543564507,1.8973,134.57,134.49,34.33]
[1725543564632,1.8973,134.57,134.52,0.04946547]
[1725543564633,0.05365835,134.54,134.52,0.04946547]
[1725543564835,0.05365835,134.54,134.46,38.09469721]
[1725543565036,0.05365835,134.54,134.46,34.33]
[1725543565336,0.05365835,134.54,134.49,34.33]
[1725543565834,0.05365835,134.54,134.5,0.05578]
[1725543566134,0.05365835,134.54,134.51,34.33]
[1725543566839,0.05365835,134.54,134.5,3.77338]
[1725543567037,0.05365835,134.54,134.5,0.05578]
[1725543567439,3.7173,134.51,134.5,0.05578]
[1725543568142,3.7181,134.49,134.44,34.33]
[1725543568335,36.3807,134.6,134.46,68.66]
[1725543568542,2.0507,134.6,134.5,34.33]
[1725543569179,0.05090294,134.56,134.54,0.05221087]
[1725543569336,0.05090294,134.56,134.55,34.33]
[1725543569537,9.4184,134.64,134.55,37.99123306]
[1725543569743,9.4184,134.64,134.57,34.33]
[1725543570042,223.0,134.73,134.59,34.33]
[1725543570260,1.9354,134.68,134.59,34.33]
[1725543570443,1.9354,134.68,134.54,4.5828]
[1725543570444,34.33,134.75,134.62,34.33]
[1725543570640,0.05351033,134.65,134.64,34.33]
[1725543570833,0.04728438,134.66,134.64,38.0437]
[1725543571034,3.7121,134.71,134.65,34.33]
[1725543571249,7.75431306,134.85,134.4,29.9907]
[1725543571441,34.33,134.76,134.64,34.33]
[1725543571637,3.9877,134.75,134.67,34.33]
[1725543572355,11.1188,134.92,134.55,1.9698]
[1725543572356,34.33,134.89,134.7,0.05495391]
[1725543572637,3.68162555,134.89,134.72,34.33]
[1725543572839,34.33,134.84,134.72,34.33]
[1725543573047,3.80425969,134.83,134.72,34.33]
[1725543573238,0.05356252,134.79,134.76,0.05392585]
[1725543573436,0.05356252,134.79,134.76,34.38392585]
[1725543573845,0.05356252,134.79,134.76,0.05392585]
[1725543574036,3.7102,134.77,134.76,0.05392585]
[1725543574648,3.71,134.78,134.76,0.05392585]
[1725543574835,1.0,134.88,134.76,34.33]
[1725543575099,4.0689,134.87,134.76,38.05356341]
[1725543575351,1.0,134.88,134.78,34.33]
[1725543575554,1.0,134.88,134.67,1.9698]
[1725543575752,34.33,134.85,134.67,1.9698]
[1725543575950,34.33,134.85,134.71,34.33]
[1725543576152,0.05251846,134.79,134.77,0.05577483]
[1725543576362,0.05100053,134.79,134.77,0.05154451]
[1725543576554,3.71,134.78,134.77,0.05154451]
[1725543577157,3.71,134.78,134.67,1.9698]
[1725543577158,1.0,134.86,134.76,34.33]
[1725543577353,1.0,134.86,134.76,37.95650378]
[1725543577780,4.0689,134.91,134.76,34.33]
[1725543578116,4.0689,134.91,134.82,0.04896205]
[1725543578117,0.05528005,134.85,134.82,0.04896205]
[1725543578368,0.04866154,134.85,134.82,0.05044435]
[1725543579052,3.7085,134.83,134.82,0.05044435]
[1725543579357,0.04866154,134.85,134.82,0.05044435]
[1725543579560,3.7085,134.83,134.82,0.05044435]
[1725543580260,0.04866154,134.85,134.82,0.05044435]
[1725543581053,0.04866154,134.85,134.82,3.83226028]
[1725543581462,0.04866154,134.85,134.82,0.05044435]
[1725543581862,3.7085,134.83,134.82,0.05044435]
[1725543582964,3.7102,134.77,134.75,3.67245091]
[1725543583161,3.67571437,134.85,134.72,34.33]
[1725543583465,34.33,134.86,134.72,34.33]
[1725543583759,35.33,134.84,134.72,34.33]
[1725543583964,35.33,134.84,134.77,0.05463158]
[1725543583965,0.05383164,134.79,134.77,0.05463158]
[1725543584158,3.7099,134.78,134.77,0.05463158]
[1725543586263,0.05283424,134.79,134.7,34.33]
[1725543586462,3.9999,134.81,134.7,34.33]
[1725543587165,34.33,134.8,134.76,970.94034]
[1725543587470,3.7102,134.77,134.76,952.27956873]
[1725543587667,41.84086815,134.77,134.76,937.97716873]
[1725543588056,38.0402,134.77,134.76,932.26953717]
[1725543588463,3.7102,134.77,134.76,932.26953717]
[1725543588658,7.51161054,134.77,134.76,932.26953717]
[1725543589065,3.7102,134.77,134.76,932.26953717]
[1725543589460,3.7102,134.77,134.76,929.26953717]
[1725543589461,38.0402,134.77,134.76,929.26953717]
[1725543589664,41.71119461,134.77,134.76,929.26953717]
[1725543589870,38.0402,134.77,134.76,721.21953717]
[1725543590367,41.72976312,134.77,134.76,721.21953717]
[1725543590568,41.72976312,134.77,134.76,700.00723717]
[1725543590569,38.0402,134.77,134.76,700.00723717]
[1725543590866,41.7137942,134.77,134.76,692.52123717]
[1725543591071,38.0402,134.77,134.76,674.88133718]
[1725543591371,38.0402,134.77,134.76,670.12543718]
[1725543591568,41.81889197,134.77,134.76,662.69853718]
[1725543591826,38.0402,134.77,134.76,659.69853718]
[1725543592076,41.71453694,134.77,134.76,659.69853718]
[1725543592872,38.0402,134.77,134.76,649.27163718]
[1725543593069,41.82511499,134.77,134.76,435.03383718]
[1725543593267,41.82511499,134.77,134.76,429.83353718]
[1725543593829,41.82511499,134.77,134.76,409.07873718]
[1725543594072,38.0402,134.77,134.76,391.55779249]
[1725543594274,38.0402,134.77,134.76,386.49579249]
[1725543594275,41.82102961,134.77,134.76,386.49579249]
[1725543594567,41.82102961,134.77,134.76,381.46549249]
[1725543594776,7.49102961,134.77,134.76,381.46549249]
[1725543594962,41.82102961,134.77,134.76,381.46549249]
[1725543595665,38.0402,134.77,134.76,370.36899249]
[1725543595869,41.74303608,134.77,134.76,362.51019249]
[1725543596068,38.0402,134.77,134.76,72.68789249]
[1725543596285,41.75937758,134.77,134.76,37.19379249]
[1725543596474,34.33,134.77,134.62,1.9889]
[1725543596775,34.33,134.71,134.6,34.4579]
[1725543596972,3.7143,134.62,134.6,0.1279]
[1725543597575,1.0,134.7,134.6,0.0555652]
[1725543597576,0.05314262,134.63,134.6,0.0555652]
[1725543597885,0.04943864,134.63,134.6,0.05092627]
[1725543598073,3.7146,134.61,134.6,0.05092627]
[1725543600176,0.04943864,134.63,134.6,0.05092627]
[1725543600668,3.7146,134.61,134.6,0.05092627]
[1725543600873,0.04943864,134.63,134.6,0.05092627]
[1725543601074,1.0,134.7,134.61,34.33]
[1725543601277,3.7139,134.64,134.62,2.0522]
[1725543601499,1.0,134.7,134.62,2.0522]
[1725543601777,3.7139,134.64,134.62,2.0522]
[1725543601979,1.0,134.7,134.62,2.0522]
[1725543602177,0.05560127,134.67,134.65,0.04954159]
[1725543602377,3.7132,134.66,134.65,0.04954159]
[1725543602574,0.05560127,134.67,134.65,0.04954159]
[1725543602971,1.0,134.7,134.66,34.33]
[1725543603173,3.67439028,134.73,134.66,34.33]
[1725543603480,223.0,134.79,134.71,34.33]
[1725543603679,2.2047,134.83,134.71,34.33]
[1725543603979,3.7106,134.76,134.74,0.05677257]
[1725543604171,3.76756725,134.76,134.74,0.05593209]
[1725543604504,0.05696725,134.76,134.74,0.05593209]
[1725543604778,3.7107,134.75,134.74,0.05593209]
[1725543605182,3.7123,134.7,134.65,2.0522]
[1725543605389,3.64057802,134.72,134.65,2.0522]
[1725543605675,34.33,134.75,134.65,2.0522]
[1725543606075,0.05372088,134.71,134.69,0.05392304]
[1725543606577,3.7123,134.7,134.69,0.05392304]
[1725543607181,0.05372088,134.71,134.69,0.05392304]
[1725543607388,1.0,134.7,134.69,0.05392304]
[1725543607888,0.05372088,134.71,134.69,0.05392304]
[1725543608885,3.7121,134.7,134.69,0.05392304]
[1725543609384,0.05372088,134.71,134.69,0.05392304]
[1725543609879,3.66448287,134.78,134.69,34.33]
[1725543610083,3.66448287,134.78,134.7,2.0627]
[1725543610273,3.68862552,134.78,134.7,2.0627]
[1725543610473,34.33,134.79,134.7,2.0627]
[1725543610677,1.0,134.77,134.69,1.9995]
[1725543610884,3.7113,134.73,134.72,0.04685376]
[1725543612387,0.05101232,134.74,134.46,261.33]
[1725543612388,34.38101232,134.74,134.46,261.33]
[1725543612583,34.33,134.72,134.62,1.9563]
[1725543612785,34.33,134.75,134.62,36.2863]
[1725543613091,3.74322506,134.79,134.67,34.33]
[1725543613092,1.0,134.73,134.67,34.33]
[1725543613287,0.05627334,134.71,134.69,0.0560397]
[1725543613893,3.7121,134.7,134.69,0.0560397]
[1725543614280,0.05627334,134.71,134.69,0.0560397]
[1725543614484,34.33,134.79,134.69,34.3860397]
[1725543614687,5.69357421,134.78,134.7,1.9563]
[1725543615288,3.7112,134.74,134.7,1.9563]
[1725543615490,0.05151165,134.73,134.71,0.05490508]
[1725543615692,0.04974443,134.73,134.71,0.05490508]
[1725543615888,3.7115,134.72,134.71,0.05490508]
[1725543617310,3.7132,134.66,134.65,2.0629]
[1725543617428,1.0,134.71,134.61,2.0353]
[1725543617704,34.33,134.7,134.61,2.0353]
[1725543617886,3.7143,134.62,134.61,2.0353]
[1725543618391,0.05332897,134.63,134.61,2.0353]
[1725543618588,1.9062,134.75,134.61,2.0353]
[1725543618790,36.2362,134.75,134.63,34.33]
[1725543619110,1.0,134.69,134.61,36.3653]
[1725543619286,1.0,134.69,134.61,2.0353]
[1725543619799,0.05607739,134.66,134.64,0.04939655]
[1725543620294,3.7135,134.65,134.64,0.04939655]
[1725543620489,34.33,134.65,134.59,3.9634]
[1725543620796,34.33,134.65,134.55,3.961]
[1725543621396,3.77109427,134.67,134.55,3.961]
[1725543621596,0.04859188,134.62,134.6,0.05349123]
[1725543621789,0.05338433,134.62,134.6,0.05349123]
[1725543622194,4.7137,134.65,134.6,0.05349123]
[1725543622392,1.0,134.65,134.6,0.05349123]
[1725543622998,3.73318125,134.69,134.6,0.05349123]
[1725543623198,2.1889,134.76,134.59,34.33]
[1725543623495,3.7142,134.63,134.59,34.33]
[1725543623836,34.33,134.75,134.62,34.33]
[1725543623993,3.713,134.67,134.63,1.9042]
[1725543624200,34.33,134.75,134.63,1.9042]
[1725543624497,2.0537,134.77,134.64,34.33]
[1725543624498,1.0,134.74,134.64,34.33]
[1725543624704,1.0,134.74,134.67,34.33]
[1725543624907,1.0,134.74,134.63,1.9042]
[1725543624908,0.05165093,134.72,134.69,34.37892844]
[1725543625110,34.33,134.8,134.69,34.33]
[1725543625398,3.72520719,134.78,134.67,34.33]
[1725543625594,34.33,134.78,134.64,34.33]
[1725543625793,3.75529711,134.77,134.65,3.7133]
[1725543625997,34.33,134.78,134.64,34.33]
[1725543626197,0.05649394,134.72,134.7,0.05486676]
[1725543626511,0.05632243,134.72,134.7,0.05486676]
[1725543626701,3.7118,134.71,134.7,0.05486676]
[1725543626907,38.07861046,134.71,134.63,1.9042]
[1725543627097,3.7137,134.64,134.63,1.9042]
[1725543627802,4.68991653,134.71,134.63,1.9042]
[1725543627993,0.0475501,134.68,134.66,0.04910286]
[1725543628225,223.0,134.77,134.66,0.04910286]
[1725543628397,38.13470403,134.78,134.65,34.33]
[1725543628800,3.7119,134.71,134.65,34.33]
[1725543628997,3.80470403,134.78,134.67,38.0429]
[1725543629225,0.05376407,134.74,134.71,0.05371202]
[1725543629441,0.05008806,134.74,134.71,0.05450812]
[1725543629751,3.7113,134.73,134.71,0.05450812]
[1725543630705,3.76108806,134.74,134.71,0.05450812]
[1725543630902,0.05008806,134.74,134.71,0.05450812]
[1725543632407,3.7115,134.72,134.71,0.05450812]
[1725543632626,7.34471639,134.72,134.71,0.05450812]
[1725543633727,41.67471639,134.72,134.71,0.05450812]
[1725543634109,3.7115,134.72,134.71,0.05450812]
[1725543634706,0.05008806,134.74,134.71,0.05450812]
[1725543635505,3.7115,134.72,134.71,0.05450812]
[1725543635701,7.44033244,134.72,134.71,0.05450812]
[1725543635912,1.0,134.71,134.63,1.9042]
[1725543636230,34.33,134.67,134.55,34.33]
[1725543636600,3.7151,134.6,134.55,34.33]
[1725543636805,1.0,134.71,134.54,1.897]
[1725543636806,34.33,134.65,134.54,1.897]
[1725543637008,0.05369767,134.61,134.58,0.05254664]
[1725543637315,3.7148,134.6,134.58,0.05254664]
[1725543637812,0.05369767,134.61,134.58,0.05254664]
[1725543640609,3.7151,134.59,134.58,0.05254664]
[1725543641512,0.05369767,134.61,134.58,0.05254664]
[1725543642012,3.7151,134.59,134.58,0.05254664]
[1725543645013,3.7168,134.53,134.52,2.0214]
[1725543645319,1.0,134.58,134.52,2.0214]
[1725543645520,3.7164,134.55,134.49,36.1972]
[1725543645926,1.0,134.58,134.51,28.56]
[1725543646075,0.05494941,134.56,134.53,28.61410354]
[1725543646425,0.05494941,134.56,134.53,32.33090354]
[1725543646719,0.05494941,134.56,134.53,28.61410354]
[1725543646927,0.05494941,134.56,134.53,0.05410354]
[1725543647125,0.05494941,134.56,134.53,28.61410354]
[1725543647623,0.05494941,134.56,134.54,3.7162]
[1725543648127,0.05494941,134.56,134.53,0.05410354]
[1725543648446,3.7165,134.54,134.53,0.05410354]
[1725543648627,29.56,134.55,134.45,1.9666]
[1725543648820,1.0,134.55,134.45,3.9707]
[1725543649135,32.2768,134.54,134.46,3.7187]
[1725543649324,28.56,134.54,134.45,3.9707]
[1725543649623,0.05287978,134.51,134.48,0.05160085]
[1725543649827,3.77037978,134.51,134.48,0.05160085]
[1725543650028,34.33287978,134.51,134.48,0.05160085]
[1725543650227,34.28,134.51,134.41,3.9663]
[1725543650425,34.28,134.49,134.41,3.9663]
[1725543650928,34.28,134.46,134.34,34.28]
[1725543651170,34.28,134.44,134.34,38.2463]
[1725543651327,0.05142823,134.41,134.39,0.05414123]
[1725543651525,0.05317324,134.41,134.39,0.05146705]
[1725543651727,0.05317324,134.41,134.34,1.9622]
[1725543651923,3.78196788,134.41,134.29,34.28]
[1725543652259,34.28,134.38,134.28,3.8638]
[1725543652413,34.28,134.36,134.28,1.9557]
[1725543652541,3.7224,134.33,134.28,1.9557]
[1725543652735,34.28,134.35,134.24,34.28]
[1725543653033,0.05441376,134.32,134.29,0.05341452]
[1725543653239,37.92880952,134.31,134.29,0.05070904]
[1725543653540,37.92880952,134.31,134.22,1.9557]
[1725543653541,34.28,134.31,134.22,1.9557]
[1725543653731,3.7232,134.3,134.22,5.6811]
[1725543653935,1.0,134.31,134.22,5.6811]
[1725543654134,1.0,134.31,134.24,34.28]
[1725543654332,0.04702881,134.29,134.28,34.28]
[1725543654625,34.28,134.39,134.28,34.28]
[1725543654838,3.7221,134.34,134.26,34.28]
[1725543655038,7.45561218,134.34,134.26,34.28]
[1725543655553,34.28,134.36,134.22,1.9557]
[1725543655554,34.28,134.36,134.24,34.28]
[1725543655735,1.0,134.38,134.23,3.78493181]
[1725543655736,0.05304152,134.31,134.29,0.05000122]
[1725543655933,3.70184067,134.37,134.29,34.32815966]
[1725543656153,1.0,134.38,134.29,34.28]
[1725543656329,35.28,134.38,134.27,1.9722]
[1725543656733,3.6414785,134.37,134.27,1.9722]
[1725543657038,0.05108271,134.33,134.31,0.04834792]
[1725543657240,0.05694387,134.33,134.31,0.04834792]
[1725543659738,3.77934387,134.33,134.31,0.04834792]
[1725543660144,0.05694387,134.33,134.31,0.04834792]
[1725543660640,0.05694387,134.33,134.32,3.7226]
[1725543660938,34.28,134.4,134.29,34.28]
[1725543661134,3.7207,134.39,134.33,3.7222]
[1725543661341,34.28,134.42,134.31,34.28]
[1725543661746,0.05103916,134.38,134.35,0.05598035]
[1725543663435,3.77203916,134.38,134.35,0.05598035]
[1725543663864,0.05103916,134.38,134.35,0.05598035]
[1725543664046,3.7213,134.37,134.35,0.05598035]
[1725543664342,0.05103916,134.38,134.35,0.05598035]
[1725543664942,34.28,134.49,134.36,34.28]
[1725543665154,226.9721,134.53,134.4,34.28]
[1725543665350,261.2521,134.53,134.4,34.28]
[1725543665840,261.2521,134.53,134.37,1.9313]
[1725543665841,0.05159553,134.48,134.45,0.05392478]
[1725543668349,0.05159553,134.48,134.45,34.33392478]
[1725543668548,0.05159553,134.48,134.46,1.9895]
[1725543669242,1.0,134.52,134.46,1.9895]
[1725543669478,34.28,134.61,134.48,34.28]
[1725543669479,3.69853324,134.6,134.48,34.28]
[1725543669646,3.9721,134.59,134.48,34.28]
[1725543669845,3.9721,134.59,134.46,1.9895]
[1725543669846,38.2521,134.59,134.46,36.2695]
[1725543670243,3.7168,134.53,134.5,0.04709164]
[1725543670443,0.05210469,134.52,134.5,0.04709164]
[1725543671046,3.69853324,134.6,134.5,34.32709164]
[1725543671241,1389.32129,134.56,134.52,34.28]
[1725543671943,1382.99789,134.56,134.54,3.7164]
[1725543672149,1383.05371089,134.56,134.54,0.04759533]
[1725543672657,1376.73091089,134.56,134.54,34.32759533]
[1725543672850,1156.85461089,134.56,134.54,34.32759533]
[1725543673252,1156.85461089,134.56,134.55,3.7162]
[1725543673941,1147.33461089,134.56,134.55,3.7162]
[1725543674550,1144.23461089,134.56,134.55,3.7162]
[1725543674852,1144.23461089,134.56,134.54,34.32759533]
[1725543675150,1140.53461089,134.56,134.54,34.32759533]
[1725543675347,1083.63461089,134.56,134.55,3.7162]
[1725543675542,907.43461089,134.56,134.55,3.7162]
[1725543675762,702.38461089,134.56,134.55,3.7162]
[1725543676250,689.86461089,134.56,134.55,3.7162]
[1725543676553,686.26461089,134.56,134.55,7.4349968]
[1725543676754,683.26461089,134.56,134.55,3.7162]
[1725543677249,683.26461089,134.56,134.55,7.47029008]